bitfinex/quotes_ETHUSD_20241216
["timestamp","ask_amount","ask_price","bid_price","bid_amount"]
[1734392286064,0.59126386,3983.4,3981.9,0.44749074]
[1734392286329,1.02093662,3985.0,3981.9,0.44749074]
[1734392286330,0.59126386,3983.3,3981.9,0.44749074]
[1734392286532,0.22756314,3983.2,3982.8,3.0]
[1734392286733,0.22756314,3983.1,3982.8,3.0]
[1734392286903,0.38882109,3983.9,3981.9,0.12667633]
[1734392286904,0.22756314,3983.0,3981.9,0.12667633]
[1734392287240,0.36370072,3983.7,3982.8,3.0]
[1734392287390,0.59184895,3983.6,3982.8,3.0]
[1734392287586,0.61696932,3983.5,3982.7,3.0]
[1734392287899,0.61696932,3983.5,3981.9,0.12667633]
[1734392287900,0.59314713,3983.4,3981.9,0.12667633]
[1734392288092,0.59314713,3983.3,3982.7,3.0]
[1734392288294,0.59314713,3983.2,3982.7,3.0]
[1734392288527,0.22813351,3983.1,3981.9,0.12667633]
[1734392288697,1.71257256,3985.0,3981.9,0.12667633]
[1734392288698,0.22813351,3983.0,3982.7,3.0]
[1734392288921,0.22813351,3982.9,3981.9,0.26368573]
[1734392289123,0.36516189,3983.6,3982.7,3.0]
[1734392289338,1.71257256,3985.0,3982.7,3.0]
[1734392289339,0.59346879,3983.5,3982.7,3.0]
[1734392289507,0.59346879,3983.4,3982.8,3.0]
[1734392289709,0.2283069,3983.3,3982.9,0.3]
[1734392289907,8.95,3984.4,3982.9,0.3]
[1734392289908,0.2283069,3983.2,3982.9,0.3]
[1734392290119,9.31531042,3984.2,3982.9,0.3]
[1734392290321,0.59374541,3984.1,3982.9,3.0]
[1734392290523,0.59374541,3984.0,3982.9,3.0]
[1734392290751,0.59374541,3984.0,3982.1,0.7924]
[1734392290752,0.59374541,3983.9,3983.0,3.0]
[1734392290956,0.02512037,3984.4,3983.0,3.0]
[1734392290957,0.59374541,3983.8,3983.0,3.0]
[1734392291137,0.59374541,3983.8,3982.1,0.7924]
[1734392291138,0.59374541,3983.7,3982.1,0.7924]
[1734392291325,0.59411948,3983.6,3983.0,3.0]
[1734392291669,0.02512037,3984.4,3983.3,3.0]
[1734392291670,0.22843499,3983.5,3983.3,3.0]
[1734392291958,0.36569254,3984.2,3983.3,3.0]
[1734392292128,0.69163594,3985.0,3983.3,3.0]
[1734392292129,0.59426163,3984.1,3983.3,3.0]
[1734392292328,0.59426163,3984.0,3983.3,3.0]
[1734392292637,0.22856909,3983.9,3983.3,3.0]
[1734392292841,0.22856909,3983.8,3983.3,3.3]
[1734392293025,0.22856909,3983.7,3983.3,3.3]
[1734392293227,0.02512037,3984.5,3983.3,0.3]
[1734392293440,0.02512037,3984.5,3983.3,3.0]
[1734392293826,0.02512037,3984.5,3982.9,0.7924]
[1734392294150,0.02512037,3984.5,3982.2,0.71311915]
[1734392294151,8.95,3984.4,3982.2,0.16311915]
[1734392294356,8.95,3984.4,3981.6,0.7991]
[1734392294357,0.02512037,3984.3,3981.6,0.7991]
[1734392294559,1.06960632,3984.2,3981.6,0.7991]
[1734392294753,9.97093662,3984.4,3981.6,0.7991]
[1734392294754,0.61958507,3984.1,3981.6,0.7991]
[1734392294939,0.5944647,3984.0,3981.6,0.7991]
[1734392295142,0.61958507,3983.9,3981.6,0.92678567]
[1734392295456,0.61958507,3983.9,3980.1,0.5]
[1734392295457,9.5444647,3983.8,3980.8,0.7991]
[1734392295660,1.57093662,3983.6,3981.1,0.12664778]
[1734392295956,1.02093662,3983.2,3980.4,0.7991]
[1734392296157,2.08535942,3983.4,3980.4,0.7991]
[1734392296158,0.61958507,3983.1,3980.9,0.27868239]
[1734392296331,0.61958507,3983.1,3980.4,0.7991]
[1734392296332,0.5944647,3983.0,3981.0,0.32081441]
[1734392296535,0.61958507,3982.9,3981.0,0.32081441]
[1734392296733,0.5944647,3982.8,3981.0,0.32081441]
[1734392296947,0.61958507,3982.7,3981.0,0.32081441]
[1734392297148,0.5944647,3982.6,3981.1,0.55]
[1734392297350,0.22864027,3982.5,3981.1,0.55]
[1734392297552,0.22864027,3982.4,3981.1,0.55]
[1734392297869,8.95,3983.3,3981.3,0.55]
[1734392297870,0.36582443,3982.9,3981.3,0.55]
[1734392298160,8.95,3983.3,3981.3,0.55]
[1734392298161,0.22838358,3982.8,3981.4,0.16699144]
[1734392298361,0.36541373,3983.1,3981.4,0.16699144]
[1734392298362,0.22838358,3982.7,3981.4,0.16699144]
[1734392298662,0.36541373,3983.2,3982.3,3.0]
[1734392298822,0.22836948,3983.1,3982.3,3.0]
[1734392299031,8.95,3984.1,3982.3,3.0]
[1734392299032,0.3905341,3984.0,3982.3,3.0]
[1734392299238,2.47363918,3983.9,3982.3,3.0]
[1734392299452,0.61891158,3983.8,3982.3,3.0]
[1734392299772,0.61891158,3983.8,3981.5,0.32081441]
[1734392299773,0.59379121,3983.7,3981.6,0.55]
[1734392300076,1.03614707,3983.9,3982.3,3.0]
[1734392300077,0.59379121,3983.6,3982.3,3.0]
[1734392300263,0.22837748,3983.5,3981.6,0.87081441]
[1734392300562,0.22837748,3983.4,3982.3,3.0]
[1734392300763,0.22837748,3983.3,3982.3,3.0]
[1734392300968,0.22837748,3983.2,3982.3,3.0]
[1734392301138,0.22837748,3983.1,3982.3,3.0]
[1734392301345,0.02512037,3983.7,3982.3,3.3]
[1734392301346,0.22837748,3983.0,3982.3,3.3]
[1734392301542,0.3905341,3983.7,3982.3,3.3]
[1734392301543,0.02512037,3983.7,3982.3,0.3]
[1734392301773,0.22843542,3983.6,3982.4,0.57510629]
[1734392301981,8.97512037,3984.3,3982.4,0.55]
[1734392302181,8.97512037,3984.3,3982.0,0.7991]
[1734392302182,1.43908973,3984.2,3982.1,0.55]
[1734392302336,0.59414129,3984.1,3982.8,3.0]
[1734392302677,0.25364486,3984.0,3982.8,3.0]
[1734392302845,0.22852449,3983.9,3982.1,0.55]
[1734392303171,0.22852449,3983.8,3982.8,3.0]
[1734392303372,0.02512037,3984.0,3982.2,0.1477704]
[1734392303373,0.22852449,3983.7,3982.3,0.55]
[1734392303579,0.22852449,3983.7,3982.2,0.1477704]
[1734392303580,0.25364486,3983.6,3982.2,0.1477704]
[1734392303775,0.22852449,3983.5,3982.2,0.1477704]
[1734392303974,0.39073717,3984.0,3982.8,3.0]
[1734392304137,1.26469039,3983.9,3982.2,0.1477704]
[1734392304340,0.22852301,3983.8,3982.2,0.1477704]
[1734392304662,0.22852301,3983.7,3982.8,3.0]
[1734392304835,0.22852441,3983.6,3982.8,3.0]
[1734392305035,1.03616738,3983.9,3982.8,3.0]
[1734392305036,0.22852441,3983.5,3982.8,3.0]
[1734392305236,0.02512037,3983.8,3982.2,0.1477704]
[1734392305441,0.37120808,3983.7,3982.8,3.0]
[1734392305754,0.25363577,3983.6,3982.8,3.0]
[1734392305951,0.2285154,3983.5,3982.2,0.1477704]
[1734392306151,0.2285154,3983.4,3982.8,3.0]
[1734392306447,0.02512037,3983.6,3981.8,0.55]
[1734392306648,0.22851778,3983.5,3981.8,0.55]
[1734392306851,1.40180645,3983.9,3981.8,0.55]
[1734392306852,0.36563907,3983.9,3981.9,0.32081441]
[1734392307052,0.22853375,3983.8,3982.0,0.55]
[1734392307234,10.48535942,3984.6,3982.2,0.55]
[1734392307235,1.04605699,3984.3,3982.2,0.55]
[1734392307440,2.34427401,3984.2,3982.2,0.55]
[1734392307748,1.46563053,3984.1,3982.0,0.55]
[1734392307949,0.22854377,3984.0,3982.0,0.55]
[1734392308132,0.3907828,3984.1,3982.0,0.55]
[1734392308133,0.22854377,3983.9,3982.0,0.55]
[1734392308334,0.02512037,3984.2,3982.1,0.55819942]
[1734392308574,0.22856197,3984.1,3982.0,0.55]
[1734392308795,0.22856197,3984.0,3982.0,0.55]
[1734392308937,1.38659905,3984.4,3982.0,0.55]
[1734392308938,0.22856197,3983.9,3982.0,0.55]
[1734392309138,0.02512037,3984.3,3982.0,0.55]
[1734392309384,0.2285917,3984.2,3982.0,0.55]
[1734392309675,0.2285917,3984.1,3983.0,3.0]
[1734392309860,0.2285917,3984.0,3982.2,0.55]
[1734392310100,0.02512037,3984.1,3982.2,0.55]
[1734392310276,1.38659905,3984.4,3982.2,0.55]
[1734392310277,0.02512037,3984.4,3982.2,0.55]
[1734392310438,1.07531183,3984.3,3982.2,0.55]
[1734392310639,0.22859622,3984.2,3982.4,0.55]
[1734392310859,0.22859622,3984.1,3982.4,0.55]
[1734392311064,1.29724816,3984.3,3982.4,0.55]
[1734392311281,0.22859806,3984.2,3982.6,0.55]
[1734392311520,1.29724816,3984.3,3982.6,0.55]
[1734392311811,0.02512037,3984.4,3982.8,0.55]
[1734392311812,0.22860206,3984.2,3982.8,0.55]
[1734392311973,0.02512037,3984.5,3982.8,0.55]
[1734392312175,0.02512037,3984.5,3982.7,0.13309]
[1734392312176,0.2286198,3984.4,3982.7,0.13309]
[1734392312505,0.25374017,3984.3,3982.7,0.13309]
[1734392312702,0.25374017,3984.3,3982.4,0.55]
[1734392312703,0.2286198,3984.2,3982.4,0.55]
[1734392312904,0.25374017,3984.1,3982.4,0.55]
[1734392313112,8.97512037,3984.1,3982.3,0.56931587]
[1734392313327,1.02093662,3983.7,3981.4,1.55985495]
[1734392313478,10.48535942,3983.9,3981.3,0.32081441]
[1734392313479,12.34167439,3983.6,3981.3,0.32081441]
[1734392313680,4.0500506,3983.5,3981.3,0.32081441]
[1734392314002,1.02093662,3983.2,3981.8,0.12759104]
[1734392314207,0.25370391,3983.1,3981.1,0.7809]
[1734392314379,0.6335886,3983.0,3981.1,0.7809]
[1734392314579,0.6335886,3983.0,3980.8,0.32081441]
[1734392314580,0.25370391,3982.9,3980.8,0.32081441]
[1734392314774,0.22858354,3982.8,3980.8,0.32081441]
[1734392315085,0.77058193,3983.0,3980.8,0.32081441]
[1734392315086,0.43012543,3983.0,3980.8,0.32081441]
[1734392315295,0.22844479,3982.9,3980.8,0.32081441]
[1734392315517,0.02512037,3983.0,3980.8,0.32081441]
[1734392315518,0.22844479,3982.8,3980.8,0.32081441]
[1734392315685,0.02512037,3982.8,3980.8,0.32081441]
[1734392315884,0.02512037,3983.1,3980.8,0.55]
[1734392316107,0.22844427,3983.0,3980.8,0.55]
[1734392316415,0.22844427,3982.9,3981.0,0.55]
[1734392316577,0.22844427,3982.8,3981.0,0.55]
[1734392316782,0.25351683,3982.7,3981.0,0.55]
[1734392316980,0.25351683,3982.7,3980.9,0.8915866]
[1734392316981,0.2283902,3982.6,3981.3,0.12695189]
[1734392317320,1.87223241,3983.0,3981.3,0.12695189]
[1734392317321,0.25351013,3982.5,3981.3,0.12695189]
[1734392317651,1.67897813,3982.9,3981.3,0.12695189]
[1734392317652,0.39069899,3982.8,3981.3,0.12695189]
[1734392317776,1.31306196,3982.7,3981.3,0.12695189]
[1734392317981,0.22832668,3982.6,3981.3,0.12695189]
[1734392318198,1.08473528,3982.7,3981.3,0.12695189]
[1734392318511,0.25341403,3982.6,3981.3,0.12695189]
[1734392318728,0.25341403,3982.6,3980.2,1.55985495]
[1734392318729,8.95,3982.5,3980.2,1.55985495]
[1734392318943,8.95,3982.5,3979.4,3.14470008]
[1734392318944,1.02093662,3981.7,3979.1,1.55985495]
[1734392319268,2.55877351,3982.3,3979.4,0.12782915]
[1734392319269,1.02093662,3981.3,3979.4,0.12782915]
[1734392319561,1.09813198,3981.2,3978.3,2.46550156]
[1734392319861,1.02093662,3981.0,3978.3,0.90564661]
[1734392320162,1.27433055,3980.9,3977.9,2.36588312]
[1734392320305,1.02093662,3980.7,3978.0,0.57158739]
[1734392320514,0.25339393,3980.6,3977.9,0.7809]
[1734392320717,1.0729635,3980.5,3977.9,0.7809]
[1734392321063,0.25339393,3980.4,3978.7,0.12820094]
[1734392321272,0.02512037,3980.4,3978.7,0.12820094]
[1734392321907,1.24171465,3980.8,3978.7,0.12820094]
[1734392321908,0.02512037,3980.7,3978.7,0.12820094]
[1734392322208,0.1266835,3980.6,3978.7,0.12820094]
[1734392322408,0.02512037,3980.5,3978.7,0.12820094]
[1734392322909,8.95,3980.4,3978.7,0.12820094]
[1734392323110,8.97512037,3980.3,3977.5,0.55]
[1734392323422,8.95,3980.3,3977.5,0.55]
[1734392323763,8.95,3980.3,3977.4,0.7809]
[1734392323764,0.92012037,3980.2,3977.6,0.13309]
[1734392324527,9.87012037,3980.2,3978.8,3.0]
[1734392324738,9.87012037,3980.2,3977.6,0.13309]
[1734392324739,0.895,3980.2,3977.6,0.13309]
[1734392325051,0.895,3980.2,3977.7,0.55]
[1734392325052,0.92012037,3980.2,3977.7,0.55]
[1734392325425,8.95,3980.1,3978.8,3.0]
[1734392325626,1.01213241,3980.0,3978.8,3.0]
[1734392326216,1.01213241,3980.0,3978.3,0.12265889]
[1734392326588,0.98701204,3980.0,3978.8,3.0]
[1734392326861,8.95,3980.1,3978.4,0.55]
[1734392327016,8.95,3980.1,3979.0,3.0]
[1734392327216,8.95,3980.1,3978.4,0.55]
[1734392328616,8.95,3980.1,3979.0,3.0]
[1734392328957,9.0766835,3980.6,3979.0,3.3]
[1734392329161,0.02512037,3980.5,3979.0,0.3]
[1734392329455,0.02512037,3980.5,3979.0,3.0]
[1734392329956,0.02512037,3980.5,3978.4,0.55]
[1734392330154,9.0766835,3980.6,3978.5,0.02512951]
[1734392330341,9.0766835,3980.6,3979.0,3.0]
[1734392330507,9.0766835,3980.6,3978.5,0.02512951]
[1734392330749,0.90766835,3980.5,3979.0,3.0]
[1734392331065,9.0766835,3980.6,3979.4,3.0]
[1734392331066,8.95,3980.6,3979.4,3.0]
[1734392331214,8.95,3980.6,3978.6,0.15234884]
[1734392331412,8.95,3980.6,3978.7,0.55]
[1734392331965,8.95,3981.7,3978.8,0.02512674]
[1734392332109,8.95,3981.7,3979.1,0.55]
[1734392332110,0.02512037,3981.6,3979.1,0.55]
[1734392332316,0.89751204,3981.5,3979.4,0.55]
[1734392332627,0.02512037,3981.4,3979.4,0.55]
[1734392333425,8.97512037,3981.4,3978.6,0.15234884]
[1734392333626,8.97512037,3981.4,3977.8,0.85082335]
[1734392333627,0.40731596,3981.3,3978.3,0.14778774]
[1734392333827,8.95,3981.4,3978.3,0.12265889]
[1734392333828,0.20614976,3981.2,3978.3,0.12265889]
[1734392334162,0.18102939,3981.1,3978.6,3.0]
[1734392334342,8.95,3980.9,3978.6,3.0]
[1734392334554,0.02512037,3980.8,3978.6,3.0]
[1734392334756,8.95,3980.9,3979.0,0.55]
[1734392334969,0.89751204,3981.5,3979.0,0.55]
[1734392334970,9.84751204,3981.5,3979.0,0.55]
[1734392335255,9.84751204,3981.5,3978.9,0.12311049]
[1734392335256,0.02512037,3981.4,3979.2,0.55]
[1734392335613,0.02512037,3981.4,3979.1,3.0]
[1734392335812,0.02512037,3981.4,3979.0,0.55]
[1734392336111,0.98726324,3981.3,3979.3,0.8257]
[1734392336640,8.95,3981.4,3979.7,0.55]
[1734392336855,0.02512037,3981.3,3979.7,0.55]
[1734392337214,0.02512037,3981.3,3979.4,0.55]
[1734392337566,0.02512037,3981.3,3978.9,0.12311049]
[1734392337567,0.02512037,3981.3,3978.9,0.94881049]
[1734392337891,0.89751204,3981.2,3979.0,3.55]
[1734392338011,0.02512037,3981.1,3979.0,0.55]
[1734392338540,0.02512037,3981.1,3979.0,3.0]
[1734392338744,0.18132626,3981.0,3978.9,0.12311049]
[1734392338944,0.02512037,3980.9,3978.9,0.12311049]
[1734392339114,0.02512037,3980.9,3979.0,0.31231105]
[1734392339466,0.02512037,3980.9,3978.9,0.12311049]
[1734392339467,0.18143377,3980.8,3978.9,0.12311049]
[1734392339765,0.02512037,3980.7,3978.9,0.12311049]
[1734392340561,0.89751204,3981.2,3978.9,0.12311049]
[1734392340867,3.0,3981.0,3978.9,0.12311049]
[1734392341031,3.55,3980.7,3978.2,0.8252]
[1734392341370,0.02512037,3980.6,3978.2,0.8252]
[1734392341680,0.72449041,3980.6,3978.2,0.8252]
[1734392341951,8.95,3980.4,3978.4,0.12775557]
[1734392342252,0.7250546,3980.3,3978.4,0.12775557]
[1734392342461,10.32648224,3980.2,3978.4,0.12775557]
[1734392342776,10.32648224,3980.2,3977.7,0.8252]
[1734392342777,8.95,3980.0,3977.7,0.8252]
[1734392342952,0.20677492,3979.9,3977.7,0.8252]
[1734392343158,9.13165455,3979.8,3977.7,0.8252]
[1734392343472,0.72558538,3979.7,3977.7,0.8252]
[1734392343675,1.37675009,3979.6,3977.9,0.12419391]
[1734392343872,0.20677492,3979.5,3977.9,0.12419391]
[1734392344043,0.18165455,3979.4,3977.9,0.12419391]
[1734392345341,0.20677492,3979.3,3977.9,0.12419391]
[1734392345551,0.18165455,3979.2,3977.9,0.12419391]
[1734392345888,0.02512037,3979.1,3977.6,0.13309]
[1734392346037,0.18165455,3979.0,3977.6,0.13309]
[1734392346239,0.43468765,3978.9,3977.6,0.13309]
[1734392346459,0.18165455,3978.8,3977.6,0.13309]
[1734392346644,0.02512037,3979.2,3977.6,0.13309]
[1734392346853,0.4102621,3979.1,3977.6,0.13309]
[1734392347051,0.20745908,3979.0,3977.7,0.12638295]
[1734392347282,0.29174239,3979.4,3977.7,0.12638295]
[1734392347491,0.41058664,3979.3,3977.7,0.12638295]
[1734392347778,0.20760373,3979.2,3977.7,0.12638295]
[1734392347979,0.41059722,3979.1,3977.7,0.12638295]
[1734392348181,0.20760373,3979.0,3977.7,0.12638295]
[1734392348333,0.37282462,3978.9,3977.7,0.12638295]
[1734392348539,0.20760373,3978.8,3977.7,0.12638295]
[1734392348734,0.31686276,3979.1,3977.7,0.12638295]
[1734392349069,0.18271897,3979.0,3977.7,0.12638295]
[1734392349254,0.18271897,3978.9,3977.7,0.12638295]
[1734392349451,0.18271897,3978.8,3977.7,0.12638295]
[1734392349658,0.18271897,3978.8,3977.6,0.13309]
[1734392349659,0.18271897,3978.7,3977.6,0.13309]
[1734392349977,0.02512037,3979.1,3977.2,1.37947351]
[1734392349978,0.18272558,3978.6,3977.2,1.37947351]
[1734392350283,0.02512037,3979.1,3977.2,1.37947351]
[1734392350436,2.17593318,3981.5,3977.2,1.37947351]
[1734392350437,0.2922944,3979.0,3977.2,1.37947351]
[1734392350638,0.1826842,3978.9,3977.3,0.8252]
[1734392350864,0.1826842,3978.8,3977.3,0.8252]
[1734392351075,0.68278277,3979.6,3977.4,0.22046735]
[1734392351247,0.84033612,3979.5,3977.4,0.22046735]
[1734392351573,0.86545649,3979.4,3977.4,0.22046735]
[1734392351747,0.47496812,3979.3,3977.4,0.22046735]
[1734392351954,0.50008849,3979.2,3977.4,0.22046735]
[1734392352139,0.18267372,3979.1,3977.5,0.24251409]
[1734392352335,0.18267349,3979.0,3977.5,0.24251409]
[1734392352541,0.02512037,3979.2,3977.5,0.24251409]
[1734392352779,0.2922944,3979.3,3977.9,3.0]
[1734392353067,2.1250827,3980.8,3977.5,0.24251409]
[1734392353068,0.2922944,3979.6,3978.0,0.02513589]
[1734392353270,2.1250827,3981.3,3978.0,0.02513589]
[1734392353271,8.95,3980.9,3978.7,0.8252]
[1734392353482,0.65760676,3980.8,3979.8,3.0]
[1734392353694,0.68279583,3981.3,3978.8,0.57512619]
[1734392353891,0.02512037,3981.3,3978.8,0.57512619]
[1734392354090,0.31739005,3981.3,3979.9,3.0]
[1734392354239,0.02512037,3981.3,3979.1,0.12504673]
[1734392354449,8.95,3981.1,3979.1,0.12504673]
[1734392354691,1.64356338,3981.0,3979.1,0.12504673]
[1734392354841,0.29226968,3980.9,3979.6,3.0]
[1734392355044,0.29226968,3980.8,3979.2,0.55]
[1734392355272,1.53535942,3982.6,3979.2,0.55]
[1734392355273,8.95,3982.7,3980.1,3.0]
[1734392355584,0.68271832,3982.6,3979.4,0.7956]
[1734392355761,1.62086978,3982.5,3980.1,3.0]
[1734392355955,0.68271832,3982.4,3980.1,3.0]
[1734392356159,0.65759795,3982.3,3979.5,0.13456]
[1734392356345,0.68267469,3982.2,3980.1,3.0]
[1734392356718,0.65755432,3982.1,3980.1,3.0]
[1734392356842,0.68267469,3982.0,3980.1,3.0]
[1734392357046,0.65755432,3981.9,3980.1,3.0]
[1734392357353,0.96327183,3982.5,3979.5,0.13456]
[1734392357354,9.63267469,3981.8,3979.5,0.13456]
[1734392357558,1.62082179,3981.7,3979.5,0.13456]
[1734392357760,0.02512037,3981.6,3980.1,3.0]
[1734392358293,0.29222224,3981.5,3980.1,3.0]
[1734392358444,0.02512037,3981.4,3979.5,0.13456]
[1734392358649,0.02512037,3981.4,3980.1,3.0]
[1734392358891,0.68267469,3981.4,3980.1,3.0]
[1734392359103,0.68267469,3981.4,3979.1,0.15017034]
[1734392359405,0.31734261,3981.4,3979.1,0.15017034]
[1734392359564,0.31734261,3981.4,3979.1,0.12504673]
[1734392359741,0.92673426,3981.3,3979.1,0.12504673]
[1734392360383,9.26720067,3981.4,3980.1,3.0]
[1734392360597,0.22815497,3981.3,3980.1,3.0]
[1734392360899,0.55,3982.2,3979.2,0.57512355]
[1734392360900,8.95,3981.9,3979.2,0.57512355]
[1734392361060,0.9103907,3981.8,3979.2,0.57512355]
[1734392361266,0.22816461,3981.7,3979.2,0.57512355]
[1734392361592,0.22816461,3981.7,3980.1,3.0]
[1734392361593,1.23932405,3981.6,3980.1,3.0]
[1734392361796,0.22816461,3981.5,3979.3,0.16224751]
[1734392362092,0.25328498,3981.4,3979.3,0.16224751]
[1734392362392,0.02512037,3981.5,3979.3,0.16224751]
[1734392362609,1.01115944,3981.6,3979.4,0.55]
[1734392362908,1.01115944,3981.6,3980.5,3.0]
[1734392363109,9.63207095,3982.0,3979.5,0.7956]
[1734392363309,0.88504558,3981.9,3979.5,0.7956]
[1734392363476,9.20321537,3981.8,3980.5,3.0]
[1734392363808,9.20321537,3981.8,3979.5,0.7956]
[1734392363809,0.25321537,3981.7,3979.5,0.7956]
[1734392364112,12.88748586,3981.6,3978.7,0.92046998]
[1734392364256,0.55,3981.4,3978.3,1.04409223]
[1734392364465,0.55,3981.2,3978.4,1.35734394]
[1734392364777,0.43563883,3981.1,3978.5,1.04409223]
[1734392364960,0.41051846,3981.0,3978.5,1.06922018]
[1734392365160,0.18242346,3980.9,3979.1,0.12254975]
[1734392365397,8.97512037,3981.3,3979.8,3.0]
[1734392365600,1.25994304,3981.2,3979.9,0.3]
[1734392365781,1.10262145,3981.2,3979.2,0.7956]
[1734392366108,1.07750108,3981.2,3979.2,0.7956]
[1734392366290,8.95,3981.3,3979.3,0.55]
[1734392367796,8.95,3981.3,3979.3,3.55]
[1734392368024,8.95,3981.3,3979.3,0.55]
[1734392368189,8.95,3981.3,3979.3,1.59409223]
[1734392368377,8.95,3981.3,3979.5,0.55]
[1734392369090,3.0,3982.2,3979.6,0.82072046]
[1734392369289,0.55,3982.0,3979.4,1.75381422]
[1734392369615,0.72786433,3982.1,3979.4,1.75381422]
[1734392369616,0.43579754,3981.9,3979.4,0.70972199]
[1734392369776,0.41067717,3981.8,3979.4,0.70972199]
[1734392369978,0.02512037,3981.9,3979.4,0.70972199]
[1734392369979,0.84508564,3981.7,3979.7,3.0]
[1734392370280,0.84508564,3981.7,3979.5,0.16321764]
[1734392370281,0.41067717,3981.6,3979.5,0.16321764]
[1734392370506,0.02512037,3981.5,3979.5,0.16321764]
[1734392370712,0.18251841,3981.4,3979.7,0.1241799]
[1734392371009,0.02512037,3981.3,3979.7,0.1241799]
[1734392371777,0.02512037,3981.5,3979.7,0.1241799]
[1734392371981,0.55,3981.6,3979.1,0.12254975]
[1734392371982,0.55,3981.3,3979.1,0.12254975]
[1734392372226,0.55,3981.0,3979.1,0.12254975]
[1734392372524,9.5,3980.8,3978.2,0.12609953]
[1734392372820,1.93872252,3980.7,3978.0,0.7956]
[1734392372981,0.4106433,3980.6,3978.0,0.7956]
[1734392373180,0.68208141,3980.7,3978.0,0.7956]
[1734392373181,0.43576367,3980.5,3978.0,0.7956]
[1734392373402,0.4106433,3980.4,3978.0,0.7956]
[1734392373602,0.20760008,3980.3,3978.1,0.18396922]
[1734392373923,0.02512037,3980.3,3978.1,0.18396922]
[1734392374528,0.18253596,3980.2,3978.1,0.18396922]
[1734392374715,0.02512037,3980.1,3978.1,0.18396922]
[1734392374912,0.02512037,3980.1,3978.7,3.0]
[1734392375114,0.02512037,3980.1,3978.8,3.3]
[1734392375431,0.02512037,3980.1,3978.8,0.3]
[1734392375611,0.02512037,3980.5,3978.1,0.18396922]
[1734392375936,0.41075296,3980.4,3978.8,3.0]
[1734392376118,0.20768282,3980.3,3978.8,3.0]
[1734392376431,0.20768282,3980.3,3978.1,0.18396922]
[1734392376432,0.02512037,3980.3,3978.1,0.18396922]
[1734392376583,0.02512037,3980.3,3978.1,0.49722093]
[1734392376787,8.95,3980.6,3978.8,0.12537823]
[1734392377102,8.95,3980.6,3978.8,0.92097823]
[1734392377730,0.02512037,3980.5,3978.8,0.12537823]
[1734392378226,0.02512037,3980.5,3978.3,0.55]
[1734392378926,0.02512037,3980.5,3978.3,0.12624216]
[1734392379269,0.89751204,3980.4,3978.4,0.56984348]
[1734392379983,8.95,3980.3,3978.4,0.56984348]
[1734392381033,8.95,3980.3,3978.5,0.12424915]
[1734392381186,8.95,3980.3,3978.5,0.14937928]
[1734392381386,8.95,3980.3,3978.5,1.19347151]
[1734392381611,8.95,3980.3,3978.6,0.66364217]
[1734392382087,8.95,3980.3,3978.6,1.73286188]
[1734392382514,8.95,3980.3,3978.7,1.59409223]
[1734392383070,8.95,3981.7,3978.7,1.59409223]
[1734392383345,8.95,3981.7,3978.6,0.66364217]
[1734392383346,4.02093662,3981.5,3978.6,0.66364217]
[1734392383488,0.55,3981.3,3978.7,0.2401827]
[1734392383829,0.55,3981.1,3978.5,0.12424915]
[1734392384034,0.25425146,3981.0,3978.5,1.16834138]
[1734392384335,0.25425146,3981.0,3978.5,0.12424915]
[1734392384336,8.95,3980.8,3978.5,0.12424915]
[1734392384487,10.49128636,3980.7,3979.3,3.0]
[1734392384687,10.49128636,3980.7,3978.6,0.47381849]
[1734392384688,0.59570046,3980.6,3978.6,0.47381849]
[1734392384883,9.20425146,3980.5,3978.5,0.12424915]
[1734392385132,0.25425146,3980.4,3978.5,0.12424915]
[1734392385288,0.22913109,3980.3,3978.5,0.12424915]
[1734392385904,0.22913109,3980.2,3978.5,0.12424915]
[1734392387037,9.20425146,3980.1,3977.7,1.80169223]
[1734392387359,9.20425146,3980.1,3977.8,0.33615472]
[1734392387360,0.59559665,3980.0,3977.8,0.33615472]
[1734392387575,0.25425146,3979.9,3977.8,0.33615472]
[1734392387754,0.22913109,3979.8,3977.8,0.33615472]
[1734392387952,0.25425146,3979.7,3977.9,0.2137847]
[1734392388167,0.95707094,3979.8,3977.9,0.2137847]
[1734392388168,9.1790325,3979.6,3977.9,0.2137847]
[1734392388465,0.80415287,3979.5,3977.2,2.2987702]
[1734392388675,0.2290325,3979.4,3977.2,2.42446071]
[1734392388880,8.95,3979.2,3977.2,1.38036848]
[1734392389164,0.02512037,3979.1,3977.2,1.38036848]
[1734392389369,0.89751204,3979.0,3977.3,0.31820607]
[1734392389820,0.02512037,3978.9,3977.3,0.31820607]
[1734392390434,0.89751204,3979.0,3977.3,0.31820607]
[1734392391043,0.02512037,3978.9,3977.3,0.31820607]
[1734392391967,0.92263241,3979.0,3977.3,0.31820607]
[1734392392121,0.92263241,3979.0,3977.4,0.48233195]
[1734392392766,0.89751204,3979.0,3977.4,0.48233195]
[1734392392967,0.92263241,3979.0,3977.4,0.48233195]
[1734392393854,8.95,3978.9,3977.3,0.31820607]
[1734392394061,8.95,3978.9,3977.2,0.12569051]
[1734392394062,0.02512037,3978.8,3977.2,0.12569051]
[1734392394374,0.02512037,3978.8,3976.7,1.80169223]
[1734392395374,8.97512037,3978.8,3976.7,0.7576]
[1734392395665,8.97512037,3978.8,3976.7,0.12585414]
[1734392395666,0.22856135,3978.7,3976.7,0.12585414]
[1734392395875,0.22856135,3978.7,3976.3,0.036038]
[1734392395876,0.9429765,3978.6,3976.3,0.036038]
[1734392396067,0.778546,3978.5,3976.3,0.036038]
[1734392396228,0.25366637,3978.4,3976.3,0.036038]
[1734392396431,8.95,3978.2,3976.3,0.036038]
[1734392396625,0.02512037,3978.1,3976.3,0.036038]
[1734392396825,0.89751204,3978.0,3976.3,0.036038]
[1734392397041,8.97512037,3977.9,3976.3,0.1597588]
[1734392397254,8.95,3977.9,3976.3,0.036038]
[1734392397458,0.02512037,3977.8,3976.3,0.036038]
[1734392399891,0.02512037,3977.8,3976.5,3.0]
[1734392400189,0.98726324,3977.7,3976.5,3.0]
[1734392400392,0.98726324,3977.7,3976.3,0.036038]
[1734392400393,0.02512037,3977.6,3976.3,0.036038]